Cogmind - Beta 16 @@@ ROGUE MODE // 2025.10.24 @ 01:25:59 Player: Scared Dad Result: Destroyed by Z-Imprinter with Zionite Laser-M Performance ------------- Evolutions (1) 500 Regions Visited (5) 1000 Robots Destroyed (38) 190 Value Destroyed (896) 896 Prototype IDs (4) 80 Alien Tech Used (0) 0 Bonus (600) 600 TOTAL SCORE: 3266 Bonus ------- Met Imprinter 300 Was Imprinted 300 Cogmind --------- Core Integrity 0/400 Matter 220/300 Energy 160/160 System Corruption 0% Temperature Cool (9) Movement Walking (190) Ox1 Location -7/Deep Caves Parts ------- > --- POWER (1) -------- Light Nuclear Core > --- PROPULSION (2) --- Aluminum Leg Improved Carbon-fiber Leg > --- UTILITY (3) ------ Medium Storage Unit 0b10 Decoder Chip [Generic] Improved Targeting Computer > --- WEAPON (3) ------- Heavy Riot Gun Heavy Battle Rifle RU-N14's Throwing Claymores > --- INVENTORY (10) --- Ion Engine Advanced Treads Tactical Coordination Suite Improved Field Recycling Unit (77) RU-N14's Throwing Claymores (3) RU-N14's Throwing Claymores (2) RU-N14's Throwing Claymores (4) GAL Module Peak State ------------ > --- POWER ------------ Ion Engine > --- PROPULSION ------- Aluminum Leg Improved Carbon-fiber Leg > --- UTILITY ---------- Medium Storage Unit Improved Targeting Computer Tactical Coordination Suite > --- WEAPON ----------- RU-N14's Throwing Claymores RU-N14's Throwing Claymores RU-N14's Throwing Claymores > --- INVENTORY -------- Light Nuclear Core Advanced Treads 0b10 Decoder Chip [Generic] Improved Field Recycling Unit Heavy Riot Gun Particle Gun Heavy Battle Rifle RU-N14's Throwing Claymores GAL Module [Rating: 39] Favorites ----------- Power Ion Engine Engine Ion Engine Power Core Light Nuclear Core Propulsion Aluminum Leg Treads Light Treads Leg Aluminum Leg Wheel Compact Wheel Utility Improved Targeting Computer Device Improved Heat Sink Storage Small Storage Unit Processor Improved Targeting Computer Protection Light Armor Plating Weapon Particle Gun Energy Gun Particle Gun Ballistic Gun Shotgun Special Weapon RU-N14's Throwing Claymores Build | -11 -10 -9 -9 -7 -7 ------- Run | Yrd Mat Mat Min Zio Dee Slots Evolved 2 | . . 2 . . . Power . | . . . . . . Propulsion . | . . . . . . Utility 1 | . . 1 . . . Weapon 1 | . . 1 . . . Parts Attached 51 | 6 7 15 11 10 2 Power 9 | 1 2 3 2 . 1 Engine 7 | 1 2 2 2 . . Core 2 | . . 1 . . 1 Reactor . | . . . . . . Propulsion 10 | 2 2 2 3 1 . Treads 5 | . 2 2 1 . . Leg 3 | . . . 2 1 . Wheel 2 | 2 . . . . . Hover . | . . . . . . Flight . | . . . . . . Utility 13 | 1 1 4 2 4 1 Device 5 | . . 1 1 3 . Storage 2 | 1 . . 1 . . Processor 4 | . 1 1 . 1 1 Hackware . | . . . . . . Protection 2 | . . 2 . . . Artifact . | . . . . . . Weapon 19 | 2 2 6 4 5 . Energy Gun 4 | 1 . 1 1 1 . Energy Cannon . | . . . . . . Ballistic Gun 12 | 1 2 5 3 1 . Ballistic Cannon . | . . . . . . Launcher . | . . . . . . Special Weapon 3 | . . . . 3 . Impact Weapon . | . . . . . . Slashing Weapon . | . . . . . . Piercing Weapon . | . . . . . . Special Melee Weapon . | . . . . . . Unidentified Prototypes 2 | . . . . 2 . Parts Lost 15 | . 5 1 9 . . Power 4 | . 2 . 2 . . Propulsion 4 | . 2 . 2 . . Utility 2 | . . . 2 . . Weapon 5 | . 1 1 3 . . Highest Loss Streak 7 | . 3 1 7 . . To Critical Strikes . | . . . . . . Average Backups 5 | 2 4 6 3 4 7 Power . | . . . 1 1 1 Propulsion 1 | 1 3 2 1 1 1 Utility 1 | . . 1 . 2 2 Weapon 1 | . . 2 . . 3 Tool/Special . | . . . . . . Unused Backups 9 | 1 . 5 1 1 1 Power . | . . . . . . Propulsion 4 | . . 3 1 . . Utility 2 | . . 2 . . . Weapon 3 | 1 . . . 1 1 Tool/Special . | . . . . . . Average Slot Usage (%) 88 | . 90 98 69 87 100 Engine 10 | . 13 8 9 11 5 Treads 6 | . 6 22 4 . . Leg 13 | . . . 13 22 22 Wheel 2 | . 22 . . . . Device 4 | . . 2 6 4 5 Storage 7 | . 14 11 1 5 11 Processor 12 | . 8 10 11 13 16 Protection 1 | . . 8 . . . Energy Gun 11 | . 6 . 7 18 5 Ballistic Gun 16 | . 20 31 14 10 5 Special Weapon 1 | . . . . 1 21 Peak Build Rating 39 | 6 7 20 18 39 39 Average Rating 17 | 3 6 15 11 21 36 On Entrance 13 | . 6 7 18 12 39 Avg Prop Armor Cover (%) . | . . . . . . Naked Turns . | . . . . . . Heaviest Build 44 | 10 12 22 22 44 44 Greatest Support 44 | 32 40 44 44 28 28 Greatest Overweight (x) 3 | . . . . 3 1 Average Overweight (x) . | . . . . . 1 Largest Inventory Capacity 10 | 8 8 8 10 10 10 Average Capacity 7 | 6 8 8 5 7 10 Most Carried 10 | 5 6 8 8 10 9 Average Carried 5 | 3 4 6 3 5 8 Final Capacity 10 | 8 8 8 5 10 10 Final Carried 9 | 5 6 8 4 9 8 Class Distribution -------------------- 50% | Gunner 16% | Derelict-Gunner 15% | Scavenger-Mutant 15% | Mutant Dominant Class ---------------- Mutant | -10/Materials Gunner | -9/Materials Scavenger-Mutant | -9/Mines Gunner | -7/Zion Derelict-Gunner | -7/Deep Caves Resources | -11 -10 -9 -9 -7 -7 ----------- Run | Yrd Mat Mat Min Zio Dee Matter Collected 1165 | 172 184 488 161 160 . Remotely . | . . . . . . Salvage Created 1042 | . 204 648 190 . . Parts 88 | . 21 50 17 . . Haulers Intercepted . | . . . . . . Recyclers Shooed 1 | . 1 . . . . Parts Field Recycled 12 | . . . . 12 . Retrieved Matter 195 | . . . . 195 . Parts Self-Destructed . | . . . . . . Prevented . | . . . . . . Parts Restored . | . . . . . . Kills | -11 -10 -9 -9 -7 -7 ------- Run | Yrd Mat Mat Min Zio Dee Combat Hostiles Destroyed 42 | . 11 20 11 . . Guns 41 | . 10 20 11 . . AOE 1 | . 1 . . . . Classes Destroyed 6 | . 2 3 1 . . Watcher 1 | . . 1 . . . Swarmer 20 | . 9 7 4 . . Grunt 13 | . 2 9 2 . . Duelist 1 | . . 1 . . . Sentry 3 | . . 3 . . . Assembled 5 | . . . 5 . . Best Kill Streak 6 | . 4 6 5 . . Combat Bots Only 5 | . 4 5 5 . . Max Kills in Single Turn 2 | . 1 1 2 . . Gunslinging 1 | . . . 1 . . Exploded 1 | . 1 . . . . Melee . | . . . . . . Uniques/NPCs Destroyed . | . . . . . . Combat | -11 -10 -9 -9 -7 -7 -------- Run | Yrd Mat Mat Min Zio Dee Hostile Shots Fired 268 | . 79 84 99 . 6 Missed 64 | . 21 26 13 . 4 Hits 204 | . 58 58 86 . 2 Melee 23 | . . 4 19 . . Projectile 181 | . 58 54 67 . 2 Critical Strikes 5 | . 1 2 2 . . Part Disruptions 4 | . . . 4 . . Damage Taken 2766 | . 610 719 1368 . 69 Core 573 | . 173 137 228 . 35 Absorbed by Shields . | . . . . . . Core Remaining (%) 65 | 100 30 . . . . Volleys Fired 97 | . 34 33 30 . . Largest 3 | . 2 3 3 . . Hottest 88 | . 60 69 88 . . Shots Fired 224 | . 66 98 60 . . Gun 224 | . 66 98 60 . . Cannon . | . . . . . . Launcher . | . . . . . . Special . | . . . . . . Kinetic 202 | . 46 98 58 . . Thermal 22 | . 20 . 2 . . Explosive . | . . . . . . Electromagnetic . | . . . . . . Robot Hit Streak 14 | . 7 14 6 . . Robot Miss Streak 5 | . 4 4 5 . . Penetration Max . | . . . . . . Secondary Targets 7 | . 2 2 3 . . Max Gunslinging Chain 1 | . 1 1 1 . . Shots Hit Robots 142 | . 36 65 41 . . Core Hits 73 | . 16 37 20 . . Critical Kills 1 | . . 1 . . . Critical Parts Destroyed 1 | . . 1 . . . Critical Strikes 2 | . . 2 . . . Destroy 2 | . . 2 . . . Melee Attacks . | . . . . . . Impact . | . . . . . . Slashing . | . . . . . . Piercing . | . . . . . . Sneak Attacks . | . . . . . . Combat Hostiles . | . . . . . . Follow-up Attacks . | . . . . . . Damage Inflicted 2104 | . 430 1014 660 . . Guns 2011 | . 342 1011 658 . . Cannons . | . . . . . . Explosions 88 | . 88 . . . . Melee . | . . . . . . Ramming 5 | . . 3 2 . . Kinetic 1853 | . 198 1011 644 . . Thermal 158 | . 144 . 14 . . Explosive 88 | . 88 . . . . Electromagnetic . | . . . . . . Impact . | . . . . . . Slashing . | . . . . . . Piercing . | . . . . . . Highest Corruption 2 | . . 2 2 2 . Average Corruption 1 | . . 1 2 2 . Corruption Purged . | . . . . . . Corruption Blocked . | . . . . . . Effects 16 | . . 6 9 1 . Message Errors 5 | . . 1 4 . . Matter Fused 5 | . . 2 2 1 . Heat Flow Errors 2 | . . 1 1 . . Energy Discharges 1 | . . 1 . . . Data Loss (minor) 2 | . . 1 1 . . Weapon Failures 1 | . . . 1 . . Overload Shots . | . . . . . . Overflow Damage 39 | . 39 . . . . Projectiles . | . . . . . . Explosions 39 | . 39 . . . . Melee . | . . . . . . Knockbacks . | . . . . . . Impact . | . . . . . . Kinetic . | . . . . . . Secondary . | . . . . . . Self-Inflicted Damage 131 | . 131 . . . . Shots 2 | . 2 . . . . Rammed 3 | . . 2 1 . . Targets Rammed 3 | . . 2 1 . . Kicked . | . . . . . . Crushed . | . . . . . . Highest Temperature 374 | . 46 231 374 . . Average Temperature 69 | . 21 41 117 . . Received Heat Transfer 869 | . 30 156 665 . 18 Siege Activations . | . . . . . . Martial Activations . | . . . . . . Shielding Activations . | . . . . . . Robots Disrupted . | . . . . . . Combat Hostiles . | . . . . . . Robots Corrupted . | . . . . . . Combat Hostiles . | . . . . . . Parts Fried . | . . . . . . Impact Corruptions . | . . . . . . Robots Melted . | . . . . . . Combat Hostiles . | . . . . . . Parts Melted . | . . . . . . Heat Transferred 362 | . 325 . 37 . . Parts Sabotaged . | . . . . . . Parts Stolen . | . . . . . . Parts Stripped . | . . . . . . Power Chain Reactions . | . . . . . . Alert | -11 -10 -9 -9 -7 -7 ------- Run | Yrd Mat Mat Min Zio Dee Maximum Alert Level 1 | . . 1 . . . Low Security (%) 86 | 100 100 71 100 . . Level 1 13 | . . 28 . . . Level 2 . | . . . . . . Level 3 . | . . . . . . Level 4 . | . . . . . . Level 5 . | . . . . . . High Security . | . . . . . . Max Security . | . . . . . . Peak Influence 267 | . 147 267 172 . . Initial 82 | . . 40 82 . . Average 105 | . 89 156 37 . . Influence Increases 1029 | . 334 555 140 . . Destroy 0b10 Robot/C 740 | . 220 400 120 . . Destroy 0b10 Robot/NC 5 | . . 5 . . . Destroy Leader 152 | . 40 92 20 . . Successful Hack 15 | . 2 13 . . . Disable Machine 45 | . 30 15 . . . Destroy Structure 27 | . 27 . . . . Partial Spotted 15 | . . 15 . . . Lose Combat Pursuer 30 | . 15 15 . . . Influence Decreases 1029 | . 238 440 351 . . Entered New Map 185 | . . 56 129 . . Time Decay 694 | . 188 374 132 . . Lost Part 150 | . 50 10 90 . . Squads Dispatched 4 | . 2 2 . . . Investigation . | . . . . . . Extermination . | . . . . . . Reinforcement 4 | . 2 2 . . . Assault . | . . . . . . Garrison . | . . . . . . Intercept . | . . . . . . Searches Triggered . | . . . . . . Construction Impeded . | . . . . . . Haulers Reinforced . | . . . . . . Active Scanning Responses . | . . . . . . Cargo Convoy Interrupts . | . . . . . . Stealth | -11 -10 -9 -9 -7 -7 --------- Run | Yrd Mat Mat Min Zio Dee Distress Signals 5 | . 3 2 . . . Communications Jammed . | . . . . . . Distress Signals . | . . . . . . Times Spotted 69 | . 18 28 22 . 1 Peak Tracking Total 12 | . 4 7 12 . 1 Tactical Retreats 5 | . 1 1 3 . . Traps | -11 -10 -9 -9 -7 -7 ------- Run | Yrd Mat Mat Min Zio Dee Traps Triggered 2 | . . 2 . . . Indirectly . | . . . . . . Trap Hack Attempts . | . . . . . . Triggered . | . . . . . . Disarmed . | . . . . . . Reprogrammed . | . . . . . . Reused . | . . . . . . Traps Extracted . | . . . . . . Installed . | . . . . . . Triggered . | . . . . . . Machines | -11 -10 -9 -9 -7 -7 ---------- Run | Yrd Mat Mat Min Zio Dee Machines Disabled 3 | . 2 1 . . . Max in Single Turn 1 | . 1 1 . . . Machines Repaired . | . . . . . . Machines Dismantled . | . . . . . . Machines Sabotaged . | . . . . . . Overloaded Fab Kills . | . . . . . . Hacking | -11 -10 -9 -9 -7 -7 --------- Run | Yrd Mat Mat Min Zio Dee Machines Accessed 9 | . 2 7 . . . Terminals 8 | . 2 6 . . . Fabricators . | . . . . . . Repair Stations . | . . . . . . Recycling Units . | . . . . . . Scanalyzers 1 | . . 1 . . . Garrison Access . | . . . . . . Total Hacks 25 | . 10 15 . . . Successful 16 | . 7 9 . . . Failed 9 | . 3 6 . . . Catastrophic 1 | . . 1 . . . Database Lockouts . | . . . . . . Manual 12 | . . . . 12 . Terminals 23 | . 10 13 . . . Fabricators . | . . . . . . Repair Stations . | . . . . . . Recycling Units . | . . . . . . Scanalyzers 2 | . . 2 . . . Garrison Access . | . . . . . . Terminal Hacks 15 | . 7 8 . . . Record 4 | . 3 1 . . . Prototype ID Bank 1 | . 1 . . . . Branch Access Points 1 | . . 1 . . . Emergency Access Points 3 | . . 3 . . . Locate Traps 3 | . 2 1 . . . Transport Status 1 | . . 1 . . . Hauler Manifests 1 | . 1 . . . . Zone Layout 1 | . . 1 . . . Fabricator Hacks . | . . . . . . Repair Station Hacks . | . . . . . . Recycling Unit Hacks . | . . . . . . Scanalyzer 1 | . . 1 . . . Retrieve Study 1 | . . 1 . . . Garrison Access Hacks . | . . . . . . Unauthorized Hacks . | . . . . . . Terminals . | . . . . . . Fabricators . | . . . . . . Repair Stations . | . . . . . . Recycling Units . | . . . . . . Scanalyzers . | . . . . . . Garrison Access . | . . . . . . Data Cores Recovered . | . . . . . . Used . | . . . . . . Hacking Detections 9 | . 2 7 . . . Full Trace Events . | . . . . . . Feedback Events . | . . . . . . Feedback Blocked . | . . . . . . Robot Schematics Acquired . | . . . . . . Robots Built . | . . . . . . Authchips . | . . . . . . Time . | . . . . . . Total Robot Build Rating . | . . . . . . Part Schematics Acquired . | . . . . . . Parts Built . | . . . . . . Authchips . | . . . . . . Time . | . . . . . . Total Part Build Rating . | . . . . . . Part Studies Acquired 1 | . . 1 . . . Parts Repaired . | . . . . . . Time . | . . . . . . Parts Recycled . | . . . . . . Recycled Matter . | . . . . . . Retrieved Matter . | . . . . . . Retrieved Components . | . . . . . . Parts Scanalyzed . | . . . . . . Part Schematics Acquired . | . . . . . . Parts Damaged . | . . . . . . Bothacking | -11 -10 -9 -9 -7 -7 ------------ Run | Yrd Mat Mat Min Zio Dee Used RIF Installer . | . . . . . . Robots Hacked . | . . . . . . Non-combat . | . . . . . . Combat . | . . . . . . Robot Hacks Applied . | . . . . . . Relay Couplers Released . | . . . . . . Fabnet Peak Effective % . | . . . . . . Robots Rewired . | . . . . . . Allies Hacked . | . . . . . . Hacks Repelled . | . . . . . . Allies | -11 -10 -9 -9 -7 -7 -------- Run | Yrd Mat Mat Min Zio Dee Total Allies 8 | . . . 2 6 . Largest Group 6 | . . . 2 6 5 Highest-Rated Group 341 | . . . 48 341 301 Highest-Rated Ally 96 | . . . 31 96 96 Total Orders . | . . . . . . Ally Attacks 2 | . . . . . 2 Total Damage 94 | . . . . . 94 Kills 1 | . . . . . 1 Allies Corrupted . | . . . . . . Allies Melted . | . . . . . . Intel | -11 -10 -9 -9 -7 -7 ------- Run | Yrd Mat Mat Min Zio Dee Active Infowar (turns) 300 | . . . . 199 101 Decoding 300 | . . . . 199 101 Robot Analysis Total . | . . . . . . Derelict Logs Recovered 2 | . . . 1 1 . Drone Launches . | . . . . . . Drone Recoveries . | . . . . . . Exploration | -11 -10 -9 -9 -7 -7 ------------- Run | Yrd Mat Mat Min Zio Dee Turns Passed 3902 | 57 408 874 485 1903 175 Spaces Moved 2616 | 40 270 451 351 1415 89 Core 104 | 10 . . 94 . . Treads 518 | . 37 451 30 . . Legs 1731 | . . . 227 1415 89 Wheels 263 | 30 233 . . . . Hover . | . . . . . . Flight . | . . . . . . Fastest Speed 50 | 50 100 145 50 120 190 Average Speed 129 | 87 108 151 103 130 190 Slowest Speed 330 | 100 160 160 145 330 190 Overloaded Moves . | . . . . . . Propulsion Burnouts . | . . . . . . Robots Hopped . | . . . . . . Potential Cave-ins . | . . . . . . Cave-ins Triggered . | . . . . . . Exploration Rate (%) 51 | 4 61 54 76 91 24 Regions Visited 5 Branch Regions 3 Pre-discovered Areas 3 | . . . 1 2 . Known Exits Taken 1 | . . 1 . . . Unknown Exits Taken 4 | 1 1 . 1 1 . Scrap Searched 5 | . . . 1 4 . Spaces Dug . | . . . . . . Terrain Destroyed 33 | . 33 . . . . Melee . | . . . . . . Projectile . | . . . . . . AOE 33 | . 33 . . . . Terrain Rammed . | . . . . . . Walls Destroyed . | . . . . . . Machines Disabled . | . . . . . . Actions | -11 -10 -9 -9 -7 -7 --------- Run | Yrd Mat Mat Min Zio Dee Total 2966 | 64 328 574 428 1478 94 Wait 99 | . 10 35 26 28 . Move 2611 | 39 269 450 350 1414 89 Hop . | . . . . . . Pick Up 66 | 15 7 23 7 14 . Fast Attach . | . . . . . . Attach 36 | 6 6 6 10 8 . Detach 2 | . . . 1 1 . Swap 23 | . 2 9 2 6 4 Drop 29 | 4 . 16 1 7 1 Fire 97 | . 34 33 30 . . Melee . | . . . . . . Ram . | . . . . . . Kick . | . . . . . . Crush 3 | . . 2 1 . . Escape Stasis . | . . . . . . Rewire . | . . . . . . Trap . | . . . . . . Miscellaneous . | . . . . . . Route ------- -11/Scrapyard -10/Materials (discovered 3 exits: *Mat x2 / [*Min]) -9/Materials (discovered 4 exits: [*Mat x2] / *Min x2) -9/Mines (discovered 3 exits: [*Mat x2] / *Zio) -7/Zion (discovered 2 exits: [*Dee] / [*Pro]) -7/Deep Caves History --------- Turn | Location | Event 32 | -11/Scrapyard | Discovered new exit (range 15) 58 | -11/Scrapyard | Entered Materials 198 | -10/Materials | Core integrity fell below 50% 213 | -10/Materials | Discovered new exit (range 3) 283 | -10/Materials | Discovered new exit (range 14) 302 | -10/Materials | Build established: Mutant 407 | -10/Materials | Lost 3 parts (1p2n) 448 | -10/Materials | Discovered new exit (range 4) 466 | -10/Materials | Entered another Materials area 466 | -9/Materials | Evolved 2 slots: Utility x1, Weapon x1 839 | -9/Materials | Build established: Gunner 855 | -9/Materials | Discovered new exit (range 20) 968 | -9/Materials | Discovered new exit (range 15) 993 | -9/Materials | Identified exit to Mines 1340 | -9/Materials | Entered Mines 1341 | -9/Mines | Assembled infested the area 1346 | -9/Mines | Assisted by a Guerilla fighting off Assembled 1391 | -9/Mines | Core integrity fell below 50% 1437 | -9/Mines | Lost 7 parts (1p2n2u2w) 1441 | -9/Mines | Discovered new exit (range 5) 1470 | -9/Mines | Core integrity fell below 20% 1628 | -9/Mines | A Derelict revealed a hidden shortcut to a safe place 1667 | -9/Mines | Received a Rocket Launcher from a helpful Derelict 1703 | -9/Mines | Discovered new exit (range 6) 1807 | -9/Mines | Build established: Scavenger-Mutant 1825 | -9/Mines | Entered Zion 1825 | -7/Zion | Accompanied by 2 allies 1875 | -7/Zion | Led the pair of lost Derelicts to a safe place 1886 | -7/Zion | System corruption cleaned by Quarantine Array 1930 | -7/Zion | Discovered new exit (range 15) 2079 | -7/Zion | Learned location of Data Miner (-6) 2294 | -7/Zion | Found Prototype Device 2315 | -7/Zion | Identified Bomb Factory No. 2 2483 | -7/Zion | Learned Factory non-interactive machine intel 2523 | -7/Zion | Found GAL Module 2542 | -7/Zion | Acquired unknown access codes intercepted by a Zionite 2804 | -7/Zion | Build established: Derelict-Gunner 3143 | -7/Zion | Build established: Gunner 3235 | -7/Zion | Given A8's code to call for help 3337 | -7/Zion | Met Imprinter 3392 | -7/Zion | Imprinted 3394 | -7/Zion | Declared Zion's savior 3504 | -7/Zion | Found Prototype Special Weapon 3505 | -7/Zion | Identified RU-N14's Throwing Claymores 3508 | -7/Zion | Found RU-N14's Throwing Claymores 3511 | -7/Zion | Found RU-N14's Throwing Claymores 3514 | -7/Zion | Found RU-N14's Throwing Claymores 3673 | -7/Zion | Opened final containment barrier to the Deep Caves 3679 | -7/Zion | Enhanced Grunt warped into view, answering call for help 3679 | -7/Zion | Enhanced Grunt warped into view, answering call for help 3703 | -7/Zion | Discovered new exit (range 3) 3703 | -7/Zion | Saw the warning signs outside the Deep Caves entrance 3728 | -7/Zion | Entered Deep Caves 3728 | -7/Deep Caves | Accompanied by 6 allies 3900 | -7/Deep Caves | Attacked by Z-Imprinter 3903 | -7/Deep Caves | Z-Facility disabled 3903 | -7/Deep Caves | Destroyed by Z-Imprinter with Zionite Laser-M Last Messages --------------- 03703_ The room is plastered with warning signs of various forms. LOCATION=UNKNOWN GOAL=ESCAPE 03730_ P8-FKB(M): "Okay, we didn't really expect you'd be crazy enough to head out this way. We'll go back and get... reinforcements... yeah." 03730_ P8-FKB(M) slips into the shadows. 03731_ QQ-X1C(M) slips into the shadows. 03731_ 1M-LZV(M) slips into the shadows. 03732_ 5I-K2H(M) slips into the shadows. 03807_ Dropped Particle Gun. 03888_ NEW_ZION: Z-Facility proximity alert. 03888_ AK-5S4(o) is busy at the terminal. 03888_ AK-5S4(o) destroyed. Z-Imprinter: GET AWAY FROM HERE! I've worked too hard for our future just to have you ruin everything! 03903_ Z-Facility disabled. Map ----- +----------------------------------------------------+ | ???????????????????????????????? ### | | ???????????????????????????????? | | ??????????????????????????????? | | ??????????????????????????????? | | ?????????????????????????????? # | | ?????????????????????????????? ### | | ?????????????????????????????? ##?? | | ?????????????????????????????? #??? | | ?????????????????????????????? ##?? | | ?????????????????????????????? #?? | | ??????????????????????? ?? #?? | | ?????????????????????? #?? | | ?????????????????????? ##?? | | ?????????????????????? ##?? | | ??????????????????????"o #?? | | ?????????????????????? I #?? | | ?????????????????????? ##?? | | ?????????????????????"" ##??? | | ???????????????????""""" ##??? | | ??????????????????"""""" ##?? | | ???????????????"??"""""" #?? | | ??????????????"" """"" #?? | | ??????????????"" """ ##?? | | ???????????????? = #??? | | ?????????????????""""" % ##?? | | ???????????????"""""" ! @ #?? | | ??????????? g ##? | | ?????????? g #? | | ??????????? ## | | ??????????? # | | ???????????? # | | ???????????? # | | ???????????? ##### # | | ????????????? ####???### #### # | | ????????????? #?????????######??## ## | | ?????????????? ####???????????????????## ###? | | ??????????????#####????????????????????????####??? | | ?????????????????????????????????????????????????? | | | | | | | | | | | | | | | | | | | | | | | | | +----------------------------------------------------+ Best States ------------- Heat Dissipation 42 Energy Generation 14 Energy Capacity 250 Matter Stores 300 Matter Capacity 300 Sight Range 16 Terrain Scan Density 10 Armor Coverage 150 Evasion (%) 55 Targeting Accuracy 6 Recoil Reduction 2 Item Schematics ----------------- None Robot Schematics ------------------ None Fabricated ------------ Nothing Repaired ---------- Nothing Studied --------- Shotgun | -9/Materials | Hacked Alien Tech Used ----------------- None Achievements -------------- Item+ Challenges ------------ None Game ------ Seed AntisysOmegaShotgun Manual? 0 Play Time 00:34:38 Cumulative 106.0 hours Start 2025.10.24 @ 00:53:02 End 2025.10.24 @ 01:25:59 Sessions 1 Manual Loads 0 Difficulty Rogue Special Mode None Game No. 130 Rogue 130 Adventurer 0 Explorer 0 Win Type - Total 0 Types 0/0/0/0/0/0/0/0/0/0 Lore% 47 Gallery% 47 Achievement% 27 Wizard Run 0 Options --------- Layout 2 ASCII 0 Keyboard 0 Movement Numpad Keybinds 0 Fullscreen 1 Font 24/Smallcaps Map View 50x44 Zoom Use 0% Tactical HUD 1 Map Filters NONE Filters NONE Steam 1 RUN: 15328650-b4ad-420f-91d7-f0b83b405e06